lending/lending_fUSD_20250920
["ID","MTS","AMOUNT","RATE_DAILY","PERIOD"]
[386513676,1758329431835,-167.07,0.00019207,2]
[386513677,1758329431845,-1126.0,0.00019212,2]
[386513678,1758329431854,-537.39518379,0.00019397,2]
[386513679,1758329431863,-203.83986548,0.00019398,2]
[386513680,1758329431873,-322.6107,0.00019398,2]
[386513681,1758329431882,-160.0,0.00019398,2]
[386513682,1758329431891,-151.0,0.00019398,2]
[386513683,1758329431901,-601.3376128,0.00019398,2]
[386513684,1758329431910,-200.0,0.00019398,2]
[386513686,1758329431920,-151.0,0.00019398,2]
[386513688,1758329431929,-151.0,0.00019398,2]
[386513689,1758329431939,-500.0,0.00019398,2]
[386513690,1758329431949,-151.0,0.00019398,2]
[386513691,1758329431959,-322.03257861,0.00019398,2]
[386513693,1758329431968,-1000.0,0.00019398,2]
[386513694,1758329431978,-151.0,0.00019398,2]
[386513695,1758329431987,-1000.0,0.00019398,2]
[386513696,1758329431997,-151.0,0.00019398,2]
[386513697,1758329432006,-1000.0,0.00019398,2]
[386513698,1758329432016,-151.0,0.00019398,2]
[386513700,1758329432025,-151.0,0.00019398,2]
[386513702,1758329432035,-1101.21076967,0.00019398,2]
[386513704,1758329432044,-151.0,0.00019398,2]
[386513706,1758329432054,-255.33579444,0.00019398,2]
[386513708,1758329432064,-371.95838424,0.00019398,2]
[386513711,1758329432073,-151.0,0.00019398,2]
[386513714,1758329432083,-151.0,0.00019398,2]
[386513716,1758329432093,-151.0,0.00019398,2]
[386513718,1758329432102,-151.0,0.00019398,2]
[386513721,1758329432111,-200.0,0.00019398,2]
[386513724,1758329432120,-151.0,0.00019398,2]
[386513727,1758329432130,-500.0,0.00019398,2]
[386513730,1758329432139,-151.0,0.00019398,2]
[386513733,1758329432148,-500.0,0.00019398,2]
[386513735,1758329432157,-151.0,0.00019398,2]
[386513737,1758329432167,-500.0,0.00019398,2]
[386513739,1758329432176,-500.0,0.00019398,2]
[386513741,1758329432185,-151.0,0.00019398,2]
[386513743,1758329432195,-500.0,0.00019398,2]
[386513745,1758329432204,-151.0,0.00019398,2]
[386513747,1758329432214,-500.0,0.00019398,2]
[386513749,1758329432223,-151.0,0.00019398,2]
[386513751,1758329432233,-500.0,0.00019398,2]
[386513753,1758329432243,-151.0,0.00019398,2]
[386513755,1758329432253,-151.0,0.00019398,2]
[386513757,1758329432262,-500.0,0.00019398,2]
[386513759,1758329432271,-151.0,0.00019398,2]
[386513761,1758329432281,-151.0,0.00019398,2]
[386513764,1758329432292,-500.0,0.00019398,2]
[386513765,1758329432301,-151.0,0.00019398,2]
[386513767,1758329432313,-151.0,0.00019398,2]
[386513770,1758329432322,-151.0,0.00019398,2]
[386513771,1758329432332,-151.0,0.00019398,2]
[386513774,1758329432342,-151.0,0.00019398,2]
[386513776,1758329432351,-151.0,0.00019398,2]
[386513778,1758329432361,-151.0,0.00019398,2]
[386513780,1758329432371,-151.0,0.00019398,2]
[386513782,1758329432381,-151.0,0.00019398,2]
[386513784,1758329432391,-179.83000001,0.00019398,2]
[386513786,1758329432400,-151.0,0.00019398,2]
[386513788,1758329432410,-256.94,0.00019401,2]
[386513790,1758329432419,-11856.2431,0.0001941,2]
[386513792,1758329432429,-1098.3508,0.0001941,2]
[386513794,1758329432439,-1000.0,0.0001941,2]
[386513796,1758329432448,-1126.0,0.00019495,2]
[386513798,1758329432457,-367.79,0.00019499,3]
[386513800,1758329432466,-2000.0,0.000195,2]
[386513802,1758329432475,-1250.31055157,0.000195,2]
[386513804,1758329432488,-5263.59720553,0.000195,2]
[386513806,1758329432497,-400.0,0.00019509,2]
[386513808,1758329432507,-268.76817821,0.00019509,2]
[386513810,1758329432516,-400.0,0.00019509,2]
[386513812,1758329432525,-449.98,0.00019509,2]
[386513814,1758329432535,-400.0,0.00019509,2]
[386513816,1758329432544,-400.0,0.00019509,2]
[386513818,1758329432553,-400.0,0.00019509,2]
[386513820,1758329432563,-407.74759343,0.00019509,2]
[386513822,1758329432572,-400.0,0.00019509,2]
[386513824,1758329432581,-402.23411152,0.00019509,2]
[386513826,1758329432591,-400.0,0.00019509,2]
[386513828,1758329432601,-400.0,0.00019509,2]
[386513830,1758329432609,-410.13,0.00019509,2]
[386513832,1758329432619,-529.56614259,0.00019509,2]
[386513834,1758329432628,-400.0,0.00019509,2]
[386513836,1758329432637,-400.0,0.00019509,2]
[386513839,1758329432657,-400.0,0.00019509,2]
[386513841,1758329432667,-388.04054091,0.00019509,2]
[386513843,1758329432676,-400.0,0.00019509,2]
[386513845,1758329432685,-414.79,0.00019509,2]
[386513847,1758329432695,-400.0,0.00019509,2]
[386513849,1758329432705,-400.0,0.00019509,2]
[386513851,1758329432715,-400.0,0.00019509,2]
[386513853,1758329432725,-400.0,0.00019509,2]
[386513855,1758329432734,-400.0,0.00019509,2]
[386513857,1758329432743,-406.13,0.00019509,2]
[386513859,1758329432753,-400.0,0.00019509,2]
[386513861,1758329432763,-400.0,0.00019509,2]
[386513863,1758329432772,-400.0,0.00019509,2]
[386513865,1758329432781,-400.0,0.00019509,2]
[386513867,1758329432791,-430.35,0.00019509,2]
[386513869,1758329432800,-400.0,0.00019509,2]
[386513871,1758329432809,-400.0,0.00019509,2]
[386513873,1758329432819,-400.0,0.00019509,2]
[386513875,1758329432828,-400.0,0.00019509,2]
[386513877,1758329432838,-400.0,0.00019509,2]
[386513879,1758329432847,-400.0,0.00019509,2]
[386513881,1758329432857,-400.0,0.00019509,2]
[386513909,1758329433122,-400.0,0.00019509,2]
[386513910,1758329433132,-400.0,0.00019509,2]
[386513912,1758329433143,-400.0,0.00019509,2]
[386513914,1758329433153,-406.25,0.00019509,2]
[386513916,1758329433164,-407.13,0.00019509,2]
[386513918,1758329433173,-400.0,0.00019509,2]
[386513920,1758329433183,-400.0,0.00019509,2]
[386513922,1758329433192,-400.0,0.00019509,2]
[386513924,1758329433202,-400.0,0.00019509,2]
[386513925,1758329433211,-400.0,0.00019509,2]
[386513927,1758329433220,-400.0,0.00019509,2]
[386513929,1758329433231,-400.0,0.00019509,2]
[386513931,1758329433240,-400.0,0.00019509,2]
[386513933,1758329433250,-400.0,0.00019509,2]
[386513935,1758329433259,-400.0,0.00019509,2]
[386513937,1758329433269,-400.0,0.00019509,2]
[386513938,1758329433278,-400.0,0.00019509,2]
[386513940,1758329433288,-400.0,0.00019509,2]
[386513942,1758329433298,-400.0,0.00019509,2]
[386513944,1758329433307,-400.0,0.00019509,2]
[386513946,1758329433317,-400.0,0.00019509,2]
[386513948,1758329433326,-400.0,0.00019509,2]
[386513949,1758329433336,-400.0,0.00019509,2]
[386513951,1758329433347,-400.0,0.00019509,2]
[386513953,1758329433356,-400.0,0.00019509,2]
[386513955,1758329433366,-484.88,0.00019509,2]
[386513957,1758329433375,-497.91774786,0.00019509,2]
[386513959,1758329433384,-400.0,0.00019509,2]
[386513961,1758329433394,-400.0,0.00019509,2]
[386513963,1758329433403,-400.0,0.00019509,2]
[386513964,1758329433412,-452.11,0.00019509,2]
[386513966,1758329433422,-400.0,0.00019509,2]
[386513968,1758329433432,-400.0,0.00019509,2]
[386513969,1758329433443,-473.07,0.00019509,2]
[386513970,1758329433459,-174.507017,0.00019509,2]
[386513971,1758329433468,-478.9,0.00019509,2]
[386513972,1758329433478,-277.782367,0.00019509,2]
[386513973,1758329433487,-293.780617,0.00019509,2]
[386513974,1758329433496,-400.0,0.00019509,2]
[386513975,1758329433506,-451.4,0.00019509,2]
[386513976,1758329433516,-400.0,0.00019509,2]
[386513977,1758329433526,-400.0,0.00019509,2]
[386513978,1758329433536,-400.0,0.00019509,2]
[386513979,1758329433546,-400.0,0.00019509,2]
[386513980,1758329433555,-500.0,0.00019509,2]
[386513981,1758329433566,-400.0,0.00019509,2]
[386513982,1758329433576,-564.16,0.00019509,2]
[386513983,1758329433586,-400.0,0.00019509,2]
[386513984,1758329433596,-257.24142785,0.00019509,2]
[386513985,1758329433606,-400.0,0.00019509,2]
[386513986,1758329433616,-457.12,0.00019509,2]
[386513987,1758329433626,-400.0,0.00019509,2]
[386513988,1758329433636,-400.0,0.00019509,2]
[386513989,1758329433646,-467.46,0.00019509,2]
[386513990,1758329433657,-741.28,0.00019509,2]
[386513991,1758329433667,-400.0,0.00019509,2]
[386513992,1758329433677,-400.0,0.00019509,2]
[386513993,1758329433687,-400.93901155,0.00019509,2]
[386513994,1758329433697,-436.12,0.00019509,2]
[386513995,1758329433707,-400.0,0.00019509,2]
[386513996,1758329433717,-1205.29,0.00019509,2]
[386513997,1758329433727,-330.14300321,0.00019509,2]
[386513998,1758329433737,-559.42,0.00019509,2]
[386513999,1758329433748,-465.99,0.00019509,2]
[386514000,1758329433758,-400.0,0.00019509,2]
[386514001,1758329433768,-400.0,0.00019509,2]
[386514002,1758329433778,-184.31179896,0.00019509,2]
[386514003,1758329433788,-440.7,0.00019509,2]
[386514004,1758329433799,-497.53480296,0.00019509,2]
[386514005,1758329433808,-454.22,0.00019509,2]
[386514006,1758329433818,-400.0,0.00019509,2]
[386514007,1758329433829,-400.0,0.00019509,2]
[386514008,1758329433838,-1369.13,0.00019509,2]
[386514009,1758329433850,-463.16,0.00019509,2]
[386514010,1758329433860,-400.0,0.00019509,2]
[386514011,1758329433869,-400.0,0.00019509,2]
[386514012,1758329433879,-1246.93,0.00019509,2]
[386514013,1758329433888,-400.0,0.00019509,2]
[386514014,1758329433898,-400.0,0.00019509,2]
[386514015,1758329433908,-400.0,0.00019509,2]
[386514016,1758329433917,-400.0,0.00019509,2]
[386514017,1758329433927,-677.88,0.00019509,2]
[386514018,1758329433936,-400.0,0.00019509,2]
[386514019,1758329433946,-400.0,0.00019509,2]
[386514020,1758329433955,-400.0,0.00019509,2]
[386514021,1758329433965,-400.0,0.00019509,2]
[386514022,1758329433975,-412.06,0.00019509,2]
[386514023,1758329433984,-400.0,0.00019509,2]
[386514024,1758329433994,-596.3,0.00019509,2]
[386514025,1758329434003,-400.0,0.00019509,2]
[386514026,1758329434013,-400.0,0.00019509,2]
[386514027,1758329434024,-574.61,0.00019509,2]
[386514028,1758329434034,-400.0,0.00019509,2]
[386514029,1758329434043,-525.36,0.00019509,2]
[386514030,1758329434053,-675.75,0.00019509,2]
[386514031,1758329434062,-400.0,0.00019509,2]
[386514032,1758329434072,-400.0,0.00019509,2]
[386514033,1758329434082,-589.6,0.00019509,2]
[386514034,1758329434092,-400.0,0.00019509,2]
[386514035,1758329434103,-400.0,0.00019509,2]
[386514036,1758329434113,-546.01,0.00019509,2]
[386514037,1758329434123,-520.21,0.00019509,2]
[386514038,1758329434133,-532.65,0.00019509,2]
[386514039,1758329434143,-400.0,0.00019509,2]
[386514040,1758329434153,-400.0,0.00019509,2]
[386514041,1758329434163,-400.0,0.00019509,2]
[386514042,1758329434173,-400.0,0.00019509,2]
[386514043,1758329434183,-493.17,0.00019509,2]
[386514044,1758329434193,-1347.24,0.00019509,2]
[386514045,1758329434203,-600.21,0.00019509,2]
[386514046,1758329434213,-400.0,0.00019509,2]
[386514047,1758329434222,-400.0,0.00019509,2]
[386514048,1758329434232,-619.83,0.00019509,2]
[386514049,1758329434243,-400.0,0.00019509,2]
[386514050,1758329434252,-640.36,0.00019509,2]
[386514051,1758329434262,-500.0,0.00019509,2]
[386514052,1758329434271,-1552.81,0.00019509,2]
[386514053,1758329434282,-444.04,0.00019509,2]
[386514054,1758329434292,-424.21,0.00019509,2]
[386514055,1758329434302,-1244.88,0.00019509,2]
[386514056,1758329434313,-792.31,0.00019509,2]
[386514057,1758329434323,-1777.83,0.00019509,2]
[386514058,1758329434332,-400.0,0.00019509,2]
[386514059,1758329434342,-400.0,0.00019509,2]
[386514060,1758329434351,-400.0,0.00019509,2]
[386514061,1758329434360,-400.0,0.00019509,2]
[386514062,1758329434370,-538.97,0.00019509,2]
[386514063,1758329434379,-588.3,0.00019509,2]
[386514064,1758329434388,-749.83,0.00019509,2]
[386514065,1758329434398,-414.55,0.00019509,2]
[386514066,1758329434408,-400.0,0.00019509,2]
[386514067,1758329434417,-400.0,0.00019509,2]
[386514068,1758329434426,-1094.58,0.00019509,2]
[386514069,1758329434436,-400.0,0.00019509,2]
[386514070,1758329434446,-400.0,0.00019509,2]
[386514071,1758329434455,-576.35,0.00019509,2]
[386514072,1758329434465,-405.63,0.00019509,2]
[386514073,1758329434475,-400.0,0.00019509,2]
[386514074,1758329434485,-670.09,0.00019509,2]
[386514075,1758329434494,-400.0,0.0001951,2]
[386514076,1758329434504,-400.0,0.0001951,2]
[386514077,1758329434513,-400.0,0.0001951,2]
[386514078,1758329434523,-400.0,0.0001951,2]
[386514079,1758329434532,-400.0,0.0001951,2]
[386514080,1758329434542,-400.0,0.0001951,2]
[386514081,1758329434552,-164.18534715,0.0001951,2]
[386514082,1758329434561,-400.0,0.0001951,2]
[386514083,1758329434571,-400.0,0.0001951,2]
[386514084,1758329434580,-400.0,0.0001951,2]
[386514085,1758329434590,-400.0,0.0001951,2]
[386514086,1758329434600,-400.0,0.0001951,2]
[386514087,1758329434611,-400.0,0.0001951,2]
[386514088,1758329434621,-400.0,0.0001951,2]
[386514089,1758329434631,-400.0,0.0001951,2]
[386514090,1758329434641,-400.0,0.0001951,2]
[386514091,1758329434651,-402.24,0.0001951,2]
[386514092,1758329434661,-400.0,0.0001951,2]
[386514093,1758329434671,-400.0,0.0001951,2]
[386514094,1758329434681,-400.0,0.0001951,2]
[386514095,1758329434691,-400.0,0.0001951,2]
[386514096,1758329434700,-400.0,0.0001951,2]
[386514097,1758329434710,-400.0,0.0001951,2]
[386514098,1758329434721,-400.0,0.0001951,2]
[386514099,1758329434731,-400.0,0.0001951,2]
[386514100,1758329434741,-400.0,0.0001951,2]
[386514101,1758329434751,-400.0,0.0001951,2]
[386514102,1758329434761,-400.0,0.0001951,2]
[386514103,1758329434770,-400.0,0.0001951,2]
[386514104,1758329434781,-400.0,0.0001951,2]
[386514105,1758329434792,-400.0,0.0001951,2]
[386514106,1758329434802,-400.0,0.0001951,2]
[386514107,1758329434812,-400.0,0.0001951,2]
[386514108,1758329434822,-400.0,0.0001951,2]
[386514109,1758329434833,-406.41,0.0001951,2]
[386514110,1758329434843,-400.0,0.0001951,2]
[386514111,1758329434855,-400.0,0.0001951,2]
[386514112,1758329434867,-435.31,0.0001951,2]
[386514113,1758329434877,-400.0,0.0001951,2]
[386514114,1758329434889,-400.0,0.0001951,2]
[386514115,1758329434900,-400.0,0.0001951,2]
[386514116,1758329434911,-400.0,0.0001951,2]
[386514117,1758329434921,-400.0,0.0001951,2]
[386514118,1758329434930,-400.0,0.0001951,2]
[386514119,1758329434940,-400.0,0.0001951,2]
[386514120,1758329434950,-400.0,0.0001951,2]
[386514121,1758329434960,-400.0,0.0001951,2]
[386514122,1758329434969,-400.0,0.0001951,2]
[386514123,1758329434979,-400.0,0.0001951,2]
[386514124,1758329434989,-400.0,0.0001951,2]
[386514125,1758329434998,-400.0,0.0001951,2]
[386514126,1758329435008,-400.0,0.0001951,2]
[386514127,1758329435018,-400.0,0.0001951,2]
[386514128,1758329435027,-400.0,0.0001951,2]
[386514129,1758329435037,-400.0,0.0001951,2]
[386514130,1758329435047,-400.0,0.0001951,2]
[386514131,1758329435056,-400.0,0.0001951,2]
[386514132,1758329435065,-400.0,0.0001951,2]
[386514133,1758329435075,-519.52952908,0.0001951,2]
[386514134,1758329435084,-400.0,0.0001951,2]
[386514135,1758329435094,-493.1,0.0001951,2]
[386514136,1758329435103,-400.0,0.0001951,2]
[386514137,1758329435113,-401.89,0.0001951,2]
[386514138,1758329435123,-400.0,0.0001951,2]
[386514139,1758329435132,-400.0,0.0001951,2]
[386514140,1758329435141,-400.0,0.0001951,2]
[386514141,1758329435151,-400.0,0.0001951,2]
[386514142,1758329435161,-400.0,0.0001951,2]
[386514143,1758329435170,-400.0,0.0001951,2]
[386514144,1758329435183,-400.0,0.0001951,2]
[386514145,1758329435194,-400.0,0.0001951,2]
[386514146,1758329435207,-400.0,0.0001951,2]
[386514147,1758329435216,-577.5,0.0001951,2]
[386514148,1758329435225,-400.0,0.0001951,2]
[386514149,1758329435235,-400.0,0.0001951,2]
[386514150,1758329435244,-400.0,0.0001951,2]
[386514151,1758329435254,-400.0,0.0001951,2]
[386514152,1758329435263,-558.8,0.0001951,2]
[386514153,1758329435273,-400.0,0.0001951,2]
[386514154,1758329435282,-400.0,0.0001951,2]
[386514155,1758329435291,-400.0,0.0001951,2]
[386514156,1758329435301,-400.0,0.0001951,2]
[386514157,1758329435310,-400.0,0.0001951,2]
[386514158,1758329435320,-283.44178528,0.0001951,2]
[386514159,1758329435329,-400.0,0.0001951,2]
[386514160,1758329435339,-400.0,0.0001951,2]
[386514161,1758329435348,-400.0,0.0001951,2]
[386514162,1758329435358,-400.0,0.0001951,2]
[386514163,1758329435367,-305.16789812,0.0001951,2]
[386514164,1758329435385,-94.83210188,0.0001951,2]
[386514165,1758329435395,-400.0,0.0001951,2]
[386514166,1758329435404,-716.15,0.0001951,2]
[386514167,1758329435415,-51.81332726,0.0001951,2]
[386514168,1758329435426,-348.18667274,0.0001951,2]
[386514169,1758329435435,-400.0,0.0001951,2]
[386514170,1758329435447,-400.0,0.0001951,2]
[386514171,1758329435458,-405.19,0.0001951,2]
[386514172,1758329435467,-400.0,0.0001951,2]
[386514173,1758329435477,-400.0,0.0001951,2]
[386514174,1758329435486,-410.14,0.0001951,2]
[386514175,1758329435498,-400.0,0.0001951,2]
[386514176,1758329435507,-400.0,0.0001951,2]
[386514177,1758329435516,-400.0,0.0001951,2]
[386514178,1758329435528,-400.0,0.0001951,2]
[386514179,1758329435538,-400.0,0.0001951,2]
[386514180,1758329435547,-400.0,0.0001951,2]
[386514181,1758329435557,-472.5,0.0001951,2]
[386514182,1758329435567,-400.0,0.0001951,2]
[386514183,1758329435576,-400.0,0.0001951,2]
[386514184,1758329435586,-400.0,0.0001951,2]
[386514185,1758329435594,-243.77326972,0.0001951,2]
[386514186,1758329435604,-400.0,0.0001951,2]
[386514187,1758329435614,-400.0,0.0001951,2]
[386514188,1758329435624,-506.98,0.0001951,2]
[386514189,1758329435634,-400.0,0.0001951,2]
[386514190,1758329435643,-400.0,0.0001951,2]
[386514191,1758329435653,-400.0,0.0001951,2]
[386514192,1758329435664,-400.0,0.0001951,2]
[386514193,1758329435674,-400.0,0.0001951,2]
[386514194,1758329435684,-400.0,0.0001951,2]
[386514195,1758329435694,-400.0,0.0001951,2]
[386514196,1758329435704,-400.0,0.0001951,2]
[386514197,1758329435714,-400.0,0.0001951,2]
[386514198,1758329435723,-400.0,0.0001951,2]
[386514199,1758329435733,-615.52,0.0001951,2]
[386514200,1758329435743,-400.0,0.0001951,2]
[386514201,1758329435752,-198.32756344,0.0001951,2]
[386514202,1758329435765,-201.67243656,0.0001951,2]
[386514203,1758329435774,-400.0,0.0001951,2]
[386514204,1758329435783,-513.01,0.0001951,2]
[386514205,1758329435791,-400.0,0.0001951,2]
[386514206,1758329435800,-416.4,0.0001951,2]
[386514207,1758329435809,-492.03,0.0001951,2]
[386514208,1758329435817,-400.0,0.0001951,2]
[386514209,1758329435827,-400.0,0.0001951,2]
[386514210,1758329435836,-400.0,0.0001951,2]
[386514211,1758329435857,-400.0,0.0001951,2]
[386514212,1758329435869,-440.32,0.0001951,2]
[386514213,1758329435879,-411.99,0.0001951,2]
[386514214,1758329435889,-400.0,0.0001951,2]
[386514215,1758329435899,-400.0,0.0001951,2]
[386514216,1758329435909,-400.0,0.0001951,2]
[386514217,1758329435918,-400.0,0.0001951,2]
[386514218,1758329435928,-400.0,0.0001951,2]
[386514219,1758329435938,-400.0,0.0001951,2]
[386514220,1758329435948,-400.0,0.0001951,2]
[386514221,1758329435957,-448.41,0.0001951,2]
[386514222,1758329435966,-400.0,0.0001951,2]
[386514223,1758329435977,-407.22,0.0001951,2]
[386514224,1758329435987,-432.73,0.0001951,2]
[386514225,1758329435997,-400.0,0.0001951,2]
[386514226,1758329436006,-400.0,0.0001951,2]
[386514227,1758329436016,-400.0,0.0001951,2]
[386514228,1758329436026,-400.0,0.0001951,2]
[386514229,1758329436036,-400.0,0.0001951,2]
[386514230,1758329436045,-400.0,0.0001951,2]
[386514231,1758329436055,-400.0,0.0001951,2]
[386514232,1758329436065,-400.0,0.0001951,2]
[386514233,1758329436076,-400.0,0.0001951,2]
[386514234,1758329436087,-400.0,0.0001951,2]
[386514235,1758329436097,-400.0,0.0001951,2]
[386514236,1758329436107,-466.52,0.0001951,2]
[386514237,1758329436117,-400.0,0.0001951,2]
[386514238,1758329436126,-400.0,0.0001951,2]
[386514239,1758329436135,-400.0,0.0001951,2]
[386514240,1758329436145,-400.0,0.0001951,2]
[386514241,1758329436155,-400.0,0.0001951,2]
[386514242,1758329436167,-400.0,0.0001951,2]
[386514243,1758329436177,-459.98,0.0001951,2]
[386514244,1758329436187,-400.0,0.0001951,2]
[386514245,1758329436197,-400.0,0.0001951,2]
[386514246,1758329436207,-400.0,0.0001951,2]
[386514247,1758329436217,-400.0,0.0001951,2]
[386514248,1758329436227,-400.0,0.0001951,2]
[386514249,1758329436237,-400.0,0.0001951,2]
[386514250,1758329436248,-400.0,0.0001951,2]
[386514251,1758329436258,-400.0,0.0001951,2]
[386514252,1758329436268,-400.0,0.0001951,2]
[386514253,1758329436278,-400.0,0.0001951,2]
[386514254,1758329436288,-360.32639785,0.0001951,2]
[386514255,1758329436301,-39.67360215,0.0001951,2]
[386514256,1758329436312,-464.64,0.0001951,2]
[386514257,1758329436322,-400.0,0.0001951,2]
[386514258,1758329436332,-124.01856222,0.0001951,2]
[386514259,1758329436368,-275.98143778,0.0001951,2]
[386514260,1758329436379,-543.02,0.0001951,2]
[386514261,1758329436389,-400.0,0.0001951,2]
[386514262,1758329436399,-408.67,0.0001951,2]
[386514263,1758329436408,-400.0,0.0001951,2]
[386514264,1758329436419,-400.0,0.0001951,2]
[386514265,1758329436428,-400.0,0.0001951,2]
[386514266,1758329436438,-400.0,0.0001951,2]
[386514267,1758329436449,-400.0,0.0001951,2]
[386514268,1758329436459,-400.0,0.0001951,2]
[386514269,1758329436468,-400.0,0.0001951,2]
[386514270,1758329436486,-174.9205122,0.0001951,2]
[386514271,1758329436526,-256.9194878,0.0001951,2]
[386514272,1758329436536,-400.0,0.0001951,2]
[386514273,1758329436546,-400.0,0.0001951,2]
[386514274,1758329436556,-400.0,0.0001951,2]
[386514275,1758329436565,-205.31716212,0.0001951,2]
[386514276,1758329436577,-365.86283788,0.0001951,2]
[386514277,1758329436587,-464.95,0.0001951,2]
[386514278,1758329436596,-397.23734863,0.0001951,2]
[386514279,1758329436608,-2.76265137,0.0001951,2]
[386514280,1758329436617,-400.0,0.0001951,2]
[386514281,1758329436627,-540.41446289,0.0001951,2]
[386514282,1758329436640,-98.02553711,0.0001951,2]
[386514283,1758329436650,-509.55,0.0001951,2]
[386514284,1758329436659,-207.06626861,0.0001951,2]
[386514285,1758329436671,-204.78373139,0.0001951,2]
[386514286,1758329436680,-400.0,0.0001951,2]
[386514287,1758329436690,-451.45,0.0001951,2]
[386514288,1758329436701,-496.16,0.0001951,2]
[386514289,1758329436711,-407.72,0.0001951,2]
[386514290,1758329436720,-1515.57,0.0001951,2]
[386514291,1758329436730,-400.0,0.0001951,2]
[386514292,1758329436740,-453.26,0.0001951,2]
[386514293,1758329436750,-400.0,0.0001951,2]
[386514294,1758329436760,-493.71,0.0001951,2]
[386514295,1758329436770,-511.91,0.0001951,2]
[386514296,1758329436779,-1612.97,0.0001951,2]
[386514297,1758329436789,-446.96,0.0001951,2]
[386514298,1758329436799,-561.58,0.0001951,2]
[386514299,1758329436809,-604.82454054,0.0001951,2]
[386514300,1758329436821,-395.17545946,0.0001951,2]
[386514301,1758329436832,-400.0,0.0001951,2]
[386514302,1758329436842,-400.0,0.0001951,2]
[386514303,1758329436853,-400.0,0.0001951,2]
[386514304,1758329436863,-735.87734054,0.0001951,2]
[386514305,1758329436891,-56.61265946,0.0001951,2]
[386514306,1758329436900,-427.66,0.0001951,2]
[386514307,1758329436910,-968.52850942,0.0001951,2]
[386514308,1758329436922,-1842.50149058,0.0001951,2]
[386514309,1758329436932,-400.0,0.0001951,2]
[386514310,1758329436942,-465.17,0.0001951,2]
[386514311,1758329436953,-423.07,0.0001951,2]
[386514312,1758329436963,-670.32,0.0001951,2]
[386514313,1758329436972,-3057.04,0.0001951,2]
[386514314,1758329436982,-675.97,0.0001951,2]
[386514315,1758329436992,-469.17,0.0001951,2]
[386514316,1758329437002,-499.02,0.0001951,2]
[386514317,1758329437011,-554.65,0.0001951,2]
[386514318,1758329437022,-524.91,0.0001951,2]
[386514319,1758329437033,-400.0,0.0001951,2]
[386514320,1758329437043,-672.15,0.0001951,2]
[386514321,1758329437053,-505.44,0.0001951,2]
[386514322,1758329437063,-446.53,0.0001951,2]
[386514323,1758329437073,-594.04,0.0001951,2]
[386514324,1758329437082,-498.56,0.0001951,2]
[386514325,1758329437092,-400.0,0.0001951,2]
[386514326,1758329437102,-600.05,0.0001951,2]
[386514327,1758329437111,-400.0,0.0001951,2]
[386514328,1758329437121,-400.0,0.0001951,2]